bitfinex/quotes_SOLUSD_20250604
["timestamp","ask_amount","ask_price","bid_price","bid_amount"]
[1749041697547,14.52599974,155.69,155.67,18.79181043]
[1749041698043,14.52599974,155.68,155.67,18.933972]
[1749041698418,14.52599974,155.69,155.67,18.933972]
[1749041699746,14.52599974,155.68,155.67,18.79181043]
[1749041701160,14.52599974,155.69,155.67,18.79181043]
[1749041701744,14.52599974,155.68,155.67,18.79181043]
[1749041703017,14.52599974,155.69,155.67,18.79181043]
[1749041704020,14.52599974,155.68,155.67,18.79181043]
[1749041704437,14.52599974,155.68,155.67,18.933972]
[1749041705209,0.8019413,155.71,155.67,18.933972]
[1749041705210,14.52599974,155.69,155.67,18.933972]
[1749041706850,14.52599974,155.69,155.67,19.013972]
[1749041709029,14.52599974,155.69,155.67,18.933972]
[1749041709231,14.52599974,155.7,155.68,0.14216157]
[1749041709430,15.32794104,155.71,155.68,0.14216157]
[1749041709650,14.52599974,155.7,155.68,0.14216157]
[1749041712229,14.52599974,155.7,155.68,0.22216157]
[1749041713225,9.2822959,155.7,155.68,0.22216157]
[1749041720456,9.2822959,155.71,155.68,0.22216157]
[1749041720654,1.578,155.72,155.68,0.22216157]
[1749041720957,9.2822959,155.73,155.7,0.14216157]
[1749041721143,9.2822959,155.74,155.71,18.79181043]
[1749041723458,27.6006,155.76,155.72,0.14216157]
[1749041723632,36.8828959,155.76,155.73,18.79181043]
[1749041725153,27.6006,155.76,155.73,18.79181043]
[1749041725354,42.09340755,155.76,155.72,0.28432314]
[1749041726464,27.6006,155.76,155.72,0.28432314]
[1749041726647,42.09340755,155.76,155.72,0.28432314]
[1749041727857,42.09340755,155.76,155.69,0.14216157]
[1749041728058,42.09340755,155.76,155.68,18.72964886]
[1749041728059,14.49280755,155.75,155.72,18.933972]
[1749041728355,42.09340755,155.76,155.72,18.933972]
[1749041728562,14.49280755,155.75,155.72,0.14216157]
[1749041728737,14.49280755,155.75,155.72,18.933972]
[1749041729056,15.29474885,155.75,155.72,0.28432314]
[1749041729247,14.49280755,155.75,155.72,0.28432314]
[1749041730362,16.09340755,155.76,155.72,0.28432314]
[1749041730558,16.09340755,155.76,155.72,14.49280755]
[1749041730749,16.09340755,155.76,155.73,18.933972]
[1749041732454,14.49280755,155.76,155.73,18.933972]
[1749041732657,14.49280755,155.77,155.73,18.933972]
[1749041734369,14.49280755,155.77,155.73,14.77713069]
[1749041735144,15.29474885,155.76,155.7,0.28432314]
[1749041735361,0.8019413,155.77,155.73,18.933972]
[1749041735545,14.49280755,155.76,155.73,18.933972]
[1749041735859,41.29474885,155.78,155.73,14.77713069]
[1749041736067,40.49280755,155.78,155.75,0.28432314]
[1749041736457,15.29474885,155.8,155.77,0.28432314]
[1749041737365,14.49280755,155.79,155.77,0.28432314]
[1749041738156,0.8019413,155.81,155.77,0.28432314]
[1749041738352,14.49280755,155.79,155.77,0.28432314]
[1749041738553,15.29474885,155.78,155.73,18.933972]
[1749041738867,14.49280755,155.78,155.75,18.933972]
[1749041739468,0.8019413,155.81,155.75,18.933972]
[1749041739646,14.49280755,155.78,155.75,18.933972]
[1749041740567,0.8019413,155.81,155.7,5.11263441]
[1749041740568,14.49280755,155.77,155.7,18.64964886]
[1749041740787,14.49280755,155.73,155.71,0.14216157]
[1749041740945,14.49280755,155.74,155.71,0.14216157]
[1749041741684,14.49280755,155.73,155.71,0.28432314]
[1749041742378,14.49280755,155.74,155.71,0.14216157]
[1749041742675,14.49280755,155.74,155.71,0.28432314]
[1749041742876,14.49280755,155.74,155.71,0.14216157]
[1749041743571,14.49280755,155.74,155.71,18.933972]
[1749041745474,14.49280755,155.74,155.68,0.08]
[1749041745678,14.49280755,155.74,155.71,18.933972]
[1749041746447,14.49280755,155.74,155.71,0.14216157]
[1749041747155,9.27783812,155.74,155.71,0.14216157]
[1749041747349,0.8019413,155.77,155.71,0.14216157]
[1749041747549,0.8019413,155.77,155.72,0.14216157]
[1749041747550,9.27783812,155.75,155.72,0.14216157]
[1749041747750,9.27783812,155.74,155.72,0.14216157]
[1749041748166,9.27783812,155.75,155.73,0.28432314]
[1749041748468,0.8019413,155.77,155.73,0.28432314]
[1749041748469,9.27783812,155.76,155.73,0.28432314]
[1749041753084,9.27783812,155.75,155.73,0.28432314]
[1749041758296,9.27783812,155.76,155.73,18.933972]
[1749041758874,0.8019413,155.78,155.73,28.21181012]
[1749041759073,9.27783812,155.77,155.73,9.56216126]
[1749041759698,11.68707942,155.79,155.75,18.933972]
[1749041759884,9.27783812,155.79,155.75,18.933972]
[1749041760088,9.27783812,155.79,155.75,9.56216126]
[1749041760503,10.07977942,155.78,155.75,0.28432314]
[1749041760676,9.27783812,155.78,155.75,0.28432314]
[1749041761095,9.27783812,155.77,155.75,0.14216157]
[1749041763604,0.8019413,155.8,155.76,0.28432314]
[1749041763898,10.07977942,155.8,155.76,0.28432314]
[1749041764097,9.27783812,155.79,155.76,0.28432314]
[1749041764695,0.8019413,155.8,155.76,0.28432314]
[1749041764897,9.27783812,155.8,155.76,0.28432314]
[1749041767696,9.27783812,155.8,155.77,18.933972]
[1749041768089,9.27783812,155.8,155.77,0.28432314]
[1749041768393,9.27783812,155.8,155.77,18.933972]
[1749041769600,9.27783812,155.79,155.77,0.14216157]
[1749041769905,9.27783812,155.78,155.76,0.14216157]
[1749041770104,9.27783812,155.78,155.75,0.14216157]
[1749041770289,9.27783812,155.79,155.75,0.14216157]
[1749041770707,9.27783812,155.79,155.76,18.64964886]
[1749041771008,9.27783812,155.79,155.77,0.28432314]
[1749041771384,9.27783812,155.8,155.77,0.28432314]
[1749041772407,0.8019413,155.82,155.79,0.14216157]
[1749041772592,9.27783812,155.81,155.79,0.14216157]
[1749041774809,10.07977942,155.8,155.77,0.14216157]
[1749041775000,9.27783812,155.79,155.77,0.14216157]
[1749041775888,10.07977942,155.78,155.75,0.14216157]
[1749041776125,9.27783812,155.77,155.75,0.14216157]
[1749041776621,9.27783812,155.76,155.75,0.14216157]
[1749041777226,9.27783812,155.76,155.74,0.14216157]
[1749041777401,9.27783812,155.77,155.74,0.14216157]
[1749041777602,9.27783812,155.77,155.74,0.28432314]
[1749041778318,9.27783812,155.78,155.74,0.28432314]
[1749041779044,9.27783812,155.79,155.76,18.933972]
[1749041779328,15.28643667,155.8,155.76,18.933972]
[1749041779910,14.48449537,155.78,155.76,0.14216157]
[1749041780202,14.48449537,155.77,155.76,0.14216157]
[1749041781423,14.48449537,155.77,155.74,0.14216157]
[1749041781723,14.48449537,155.76,155.74,0.14216157]
[1749041782215,14.48449537,155.77,155.74,0.14216157]
[1749041784020,14.48449537,155.76,155.74,0.14216157]
[1749041785308,40.48449537,155.77,155.74,0.14216157]
[1749041786113,40.48449537,155.77,155.73,18.933972]
[1749041786533,14.48449537,155.76,155.73,0.14216157]
[1749041787029,14.48449537,155.75,155.73,0.14216157]
[1749041788217,14.48449537,155.76,155.73,0.14216157]
[1749041791512,14.48449537,155.75,155.73,0.14216157]
[1749041793809,14.48449537,155.74,155.73,0.14216157]
[1749041797127,14.48449537,155.74,155.72,24.38609122]
[1749041797329,40.48449537,155.73,155.72,5.59428079]
[1749041797639,26.0,155.71,155.65,0.14216157]
[1749041797926,14.48449537,155.69,155.65,0.14216157]
[1749041798528,14.48449537,155.68,155.65,0.14216157]
[1749041798825,14.48449537,155.69,155.65,0.14216157]
[1749041799136,14.48449537,155.69,155.67,0.28432314]
[1749041799319,14.48449537,155.69,155.67,0.14216157]
[1749041799516,14.48449537,155.69,155.67,0.28432314]
[1749041799827,14.48449537,155.7,155.67,0.28432314]
[1749041800010,26.0,155.71,155.67,33.41846737]
[1749041800807,40.48449537,155.71,155.67,33.41846737]
[1749041801218,40.48449537,155.71,155.67,18.933972]
[1749041802735,14.48449537,155.71,155.67,18.933972]
[1749041803107,14.48449537,155.71,155.69,18.933972]
[1749041803307,14.48449537,155.71,155.7,0.28432314]
[1749041803538,14.48449537,155.71,155.7,18.933972]
[1749041803911,14.48449537,155.71,155.7,23.74422712]
[1749041804116,14.48449537,155.71,155.7,18.933972]
[1749041805039,14.48449537,155.71,155.7,23.60200295]
[1749041805345,28.3439413,155.72,155.71,18.79181043]
[1749041805541,42.82843667,155.72,155.71,0.14216157]
[1749041805843,42.82843667,155.72,155.68,0.14216157]
[1749041806138,14.48449537,155.7,155.68,0.14216157]
[1749041811738,14.48449537,155.71,155.68,0.14216157]
[1749041812143,14.48449537,155.72,155.68,0.14216157]
[1749041812529,14.48449537,155.72,155.7,0.14216157]
[1749041813545,0.8019413,155.73,155.69,0.14216157]
[1749041813851,14.48449537,155.72,155.69,0.14216157]
[1749041815444,14.48449537,155.72,155.7,0.28432314]
[1749041817152,14.48449537,155.73,155.7,0.28432314]
[1749041817461,14.48449537,155.74,155.71,18.933972]
[1749041818128,14.48449537,155.73,155.71,18.933972]
[1749041818328,14.48449537,155.73,155.71,0.14216157]
[1749041820658,26.0,155.75,155.71,0.14216157]
[1749041820836,40.48449537,155.75,155.71,0.14216157]
[1749041821029,14.48449537,155.75,155.71,0.14216157]
[1749041821227,9.27615476,155.75,155.71,18.933972]
[1749041821431,9.27615476,155.74,155.71,18.933972]
[1749041822329,2.3781413,155.76,155.71,0.14216157]
[1749041822555,9.27615476,155.73,155.71,0.14216157]
[1749041823149,9.27615476,155.74,155.71,0.14216157]
[1749041823330,14.49506697,155.74,155.71,18.933972]
[1749041824355,14.49506697,155.75,155.71,18.933972]
[1749041824853,14.49506697,155.74,155.71,18.933972]
[1749041825840,14.49506697,155.75,155.71,18.933972]
[1749041826034,2.3781413,155.76,155.71,18.933972]
[1749041826035,14.49506697,155.74,155.71,18.933972]
[1749041833553,14.49506697,155.74,155.7,14.49506697]
[1749041833554,14.49506697,155.74,155.7,18.933972]
[1749041834659,14.49506697,155.73,155.7,18.933972]
[1749041835769,14.49506697,155.74,155.7,18.933972]
[1749041836455,14.49506697,155.72,155.68,0.14216157]
[1749041836770,14.49506697,155.71,155.69,0.14216157]
[1749041837153,14.49506697,155.71,155.68,18.87181043]
[1749041837369,14.49506697,155.72,155.69,0.14216157]
[1749041837700,0.8019413,155.75,155.69,0.22216157]
[1749041837874,14.49506697,155.72,155.69,0.22216157]
[1749041843775,14.49506697,155.73,155.69,0.22216157]
[1749041844279,14.49506697,155.74,155.71,0.14216157]
[1749041845195,9.2769722,155.74,155.71,0.14216157]
[1749041845576,9.2769722,155.75,155.72,18.79181043]
[1749041845755,10.8531722,155.76,155.72,18.79181043]
[1749041848060,9.2769722,155.78,155.75,0.14216157]
[1749041849161,9.2769722,155.79,155.76,18.79181043]
[1749041849365,10.8021722,155.8,155.76,18.79181043]
[1749041849770,10.8021722,155.8,155.69,0.08]
[1749041849771,9.2769722,155.77,155.69,0.08]
[1749041849979,9.2769722,155.73,155.69,18.87181043]
[1749041850159,9.2769722,155.72,155.69,0.22216157]
[1749041850358,9.2769722,155.71,155.69,0.22216157]
[1749041850558,9.2769722,155.71,155.69,0.08]
[1749041850967,9.2769722,155.72,155.69,0.08]
[1749041851883,9.2769722,155.71,155.69,0.08]
[1749041853183,14.49969958,155.71,155.69,0.08]
[1749041855687,14.49969958,155.7,155.69,0.08]
[1749041855988,14.49969958,155.7,155.66,18.933972]
[1749041857473,14.49969958,155.69,155.66,18.933972]
[1749041857685,14.49969958,155.69,155.65,18.933972]
[1749041858394,14.49969958,155.68,155.65,18.933972]
[1749041858776,14.49969958,155.67,155.65,18.79181043]
[1749041858980,14.49969958,155.66,155.65,18.79181043]
[1749041859180,14.49969958,155.66,155.65,18.933972]
[1749041861181,14.49969958,155.67,155.65,18.933972]
[1749041861577,14.49969958,155.68,155.66,0.14216157]
[1749041861780,14.49969958,155.69,155.66,0.22216157]
[1749041867489,2.3604413,155.72,155.66,0.22216157]
[1749041867678,14.49969958,155.69,155.66,0.22216157]
[1749041872101,14.49969958,155.68,155.66,0.22216157]
[1749041874387,2.3604413,155.72,155.66,0.22216157]
[1749041874894,14.49969958,155.68,155.66,0.22216157]
[1749041876090,14.49969958,155.67,155.66,0.08]
[1749041877794,14.49969958,155.67,155.65,18.79181043]
[1749041877995,14.49969958,155.66,155.65,18.79181043]
[1749041881492,14.49969958,155.66,155.65,0.14216157]
[1749041881698,14.49969958,155.66,155.64,5.56329976]
[1749041883201,15.30164088,155.65,155.64,5.70546133]
[1749041883584,0.8019413,155.65,155.64,24.35511019]
[1749041883792,0.8019413,155.66,155.65,0.14216157]
[1749041884111,15.30164088,155.66,155.65,0.14216157]
[1749041886942,16.80934088,155.67,155.65,18.79181043]
[1749041887233,14.49969958,155.68,155.65,18.79181043]
[1749041887392,26.0,155.68,155.65,18.79181043]
[1749041887592,40.49969958,155.68,155.65,18.79181043]
[1749041888422,14.49969958,155.67,155.65,18.79181043]
[1749041891900,14.49969958,155.66,155.65,18.79181043]
[1749041892119,14.49969958,155.66,155.65,18.933972]
[1749041893199,26.0,155.68,155.65,19.013972]
[1749041893399,14.49969958,155.66,155.65,19.013972]
[1749041893703,14.49969958,155.67,155.65,19.013972]
[1749041893908,14.49969958,155.67,155.66,0.14216157]
[1749041894126,40.49969958,155.68,155.66,0.22216157]
[1749041895240,14.49969958,155.67,155.66,0.14216157]
[1749041897531,14.49969958,155.67,155.63,18.933972]
[1749041897712,26.0,155.68,155.64,0.08]
[1749041897713,14.49969958,155.66,155.64,0.08]
[1749041897912,14.49969958,155.67,155.64,0.08]
[1749041898119,14.49969958,155.67,155.65,0.28432314]
[1749041898724,14.49969958,155.67,155.65,19.013972]
[1749041899241,15.30164088,155.67,155.65,0.36432314]
[1749041899737,26.0,155.68,155.65,0.36432314]
[1749041900038,14.49969958,155.67,155.65,0.36432314]
[1749041900423,15.30164088,155.67,155.65,0.36432314]
[1749041901016,22.64639958,155.66,155.55,18.65547688]
[1749041901366,22.64639958,155.66,155.51,6.2917]
[1749041901367,14.49969958,155.57,155.54,0.14216157]
[1749041901567,0.8019413,155.61,155.54,0.14216157]
[1749041901723,14.49969958,155.59,155.54,14.64186115]
[1749041901924,0.8019413,155.62,155.55,0.14216157]
[1749041902460,14.49969958,155.59,155.57,0.14216157]
[1749041902622,14.49969958,155.58,155.57,0.14216157]
[1749041902822,0.8019413,155.62,155.55,0.14216157]
[1749041903135,14.49969958,155.57,155.55,0.28432314]
[1749041903348,0.8019413,155.56,155.52,14.49969958]
[1749041903557,14.49969958,155.59,155.57,0.14216157]
[1749041903723,14.49969958,155.59,155.57,0.28432314]
[1749041903928,26.0,155.6,155.57,0.28432314]
[1749041903929,40.49969958,155.6,155.57,0.28432314]
[1749041904129,26.0,155.6,155.57,0.28432314]
[1749041904434,40.49969958,155.6,155.57,0.14216157]
[1749041904825,14.49969958,155.59,155.57,0.14216157]
[1749041906347,26.0,155.6,155.57,0.28432314]
[1749041906527,40.49969958,155.6,155.57,0.28432314]
[1749041906726,26.0,155.6,155.57,0.28432314]
[1749041907139,14.49969958,155.6,155.57,0.28432314]
[1749041908333,14.49969958,155.6,155.54,0.28432314]
[1749041908539,14.49969958,155.6,155.58,0.28432314]
[1749041909050,14.49969958,155.59,155.55,14.49969958]
[1749041909246,14.49969958,155.59,155.57,0.14216157]
[1749041911159,14.49969958,155.59,155.55,18.933972]
[1749041911766,14.49969958,155.59,155.55,33.43367158]
[1749041912067,14.49969958,155.59,155.55,0.14216157]
[1749041912244,14.49969958,155.59,155.55,0.28432314]
[1749041913039,0.8019413,155.62,155.55,0.28432314]
[1749041913259,14.49969958,155.59,155.55,0.28432314]
[1749041913463,14.49969958,155.59,155.55,14.78402272]
[1749041914767,14.49969958,155.6,155.55,14.78402272]
[1749041915768,0.8019413,155.62,155.58,18.933972]
[1749041915952,14.49969958,155.62,155.58,33.43367158]
[1749041916154,26.0,155.63,155.58,18.933972]
[1749041916357,14.49969958,155.62,155.59,0.14216157]
[1749041918544,14.49969958,155.62,155.55,0.56864628]
[1749041918749,14.49969958,155.61,155.58,18.933972]
[1749041920776,14.49969958,155.62,155.58,14.78402272]
[1749041922346,14.49969958,155.62,155.59,0.28432314]
[1749041922784,2.3770413,155.64,155.61,0.14216157]
[1749041922990,0.8019413,155.65,155.62,14.49969958]
[1749041923194,0.8019413,155.65,155.57,0.28432314]
[1749041923195,14.49969958,155.67,155.63,33.43367158]
[1749041923480,16.05299958,155.68,155.65,18.933972]
[1749041925855,1.5533,155.68,155.65,18.933972]
[1749041926284,16.05299958,155.68,155.65,18.933972]
[1749041927174,14.49969958,155.68,155.65,18.933972]
[1749041932992,14.49969958,155.67,155.65,18.933972]
[1749041934599,14.49969958,155.67,155.65,0.14216157]
[1749041935093,14.49969958,155.68,155.65,0.14216157]
[1749041935688,0.8019413,155.69,155.65,0.14216157]
[1749041936069,14.49969958,155.68,155.65,0.14216157]
[1749041936900,14.49969958,155.68,155.65,18.933972]
[1749041937099,14.49969958,155.67,155.65,18.933972]
[1749041938801,14.49969958,155.67,155.65,0.14216157]
[1749041940706,14.49969958,155.67,155.64,0.14216157]
[1749041940707,14.49969958,155.67,155.64,18.933972]
[1749041941702,14.49969958,155.68,155.64,14.78402272]
[1749041943376,1.6566,155.72,155.68,0.14216157]
[1749041943377,14.49969958,155.71,155.68,0.14216157]
[1749041943811,1.6566,155.72,155.7,0.14216157]
[1749041943812,16.15629958,155.72,155.7,0.14216157]
[1749041944208,15.30164088,155.71,155.66,18.64964886]
[1749041944412,14.49969958,155.68,155.67,0.14216157]
[1749041948513,14.49969958,155.68,155.65,0.14216157]
[1749041949706,15.30164088,155.67,155.65,0.14216157]
[1749041949901,14.49969958,155.67,155.65,0.14216157]
[1749041952223,14.49969958,155.66,155.64,0.14216157]
[1749041952403,15.30164088,155.65,155.63,0.14216157]
[1749041952610,14.49969958,155.64,155.55,20.57739958]
[1749041952792,14.49969958,155.59,155.56,0.14216157]
[1749041953226,14.49969958,155.59,155.56,0.28432314]
[1749041953609,14.49969958,155.59,155.55,18.79181043]
[1749041954000,14.49969958,155.59,155.56,0.14216157]
[1749041954511,14.49969958,155.59,155.55,18.79181043]
[1749041954689,14.49969958,155.57,155.55,0.14216157]
[1749041954890,14.49969958,155.57,155.54,18.79181043]
[1749041955120,14.49969958,155.57,155.54,0.28432314]
[1749041957112,14.49969958,155.58,155.54,0.28432314]
[1749041958225,14.49969958,155.58,155.54,14.78402272]
[1749041958907,14.49969958,155.57,155.54,0.28432314]
[1749041960296,14.49969958,155.56,155.54,0.28432314]
[1749041960496,14.49969958,155.55,155.54,0.14216157]
[1749041961808,0.8019413,155.59,155.54,0.14216157]
[1749041962009,14.49969958,155.56,155.54,0.14216157]
[1749041964819,14.49969958,155.55,155.52,18.933972]
[1749041965408,14.49969958,155.55,155.52,0.14216157]
[1749041965612,14.49969958,155.56,155.53,18.79181043]
[1749041968032,26.0,155.58,155.53,18.79181043]
[1749041968033,15.30164088,155.58,155.53,14.64186115]
[1749041968335,14.49969958,155.58,155.53,14.64186115]
[1749041968913,14.49969958,155.57,155.53,14.64186115]
[1749041973318,14.49969958,155.58,155.55,18.79181043]
[1749041973520,26.0,155.56,155.55,18.79181043]
[1749041973915,26.0,155.58,155.55,18.79181043]
[1749041974140,40.49969958,155.58,155.55,18.79181043]
[1749041978451,26.0,155.58,155.55,18.79181043]
[1749041978655,40.49969958,155.58,155.55,18.79181043]
[1749041979137,14.49969958,155.57,155.55,18.79181043]
[1749041979448,14.49969958,155.56,155.55,0.14216157]
[1749041980331,26.0,155.58,155.55,18.79181043]
[1749041980526,40.49969958,155.58,155.55,18.79181043]
[1749041981258,14.49969958,155.57,155.55,18.79181043]
[1749041982926,15.30164088,155.57,155.55,18.79181043]
[1749041983130,14.49969958,155.57,155.55,18.79181043]
[1749041983836,40.49969958,155.58,155.55,18.79181043]
[1749041984841,14.49969958,155.59,155.55,18.79181043]
[1749041985730,15.30164088,155.6,155.57,0.14216157]
[1749041988056,14.49969958,155.59,155.56,0.28432314]
[1749041989054,14.49969958,155.58,155.56,0.28432314]
[1749041989764,2.3418413,155.61,155.56,0.14216157]
[1749041990055,14.49969958,155.58,155.56,0.14216157]
[1749041992349,14.49969958,155.58,155.55,18.79181043]
[1749041992546,14.49969958,155.58,155.55,0.14216157]
[1749041992864,14.49969958,155.58,155.55,18.79181043]
[1749041995146,14.49969958,155.57,155.54,18.933972]
[1749041995348,14.49969958,155.57,155.54,18.79181043]
[1749041995648,14.49969958,155.57,155.54,0.14216157]
[1749041997366,14.49969958,155.58,155.54,14.78402272]
[1749041997670,0.8019413,155.57,155.54,0.14216157]
[1749041998055,14.49969958,155.55,155.52,0.14216157]
[1749041998947,14.49969958,155.53,155.5,18.933972]
[1749041999260,14.49969958,155.53,155.5,18.79181043]
[1749041999771,0.8019413,155.52,155.49,18.79181043]
[1749042000284,15.30164088,155.52,155.49,18.79181043]
[1749042000591,15.30164088,155.52,155.47,103.27534918]
[1749042000592,14.49969958,155.5,155.48,0.14216157]
[1749042000741,15.30164088,155.49,155.48,0.14216157]
[1749042001142,14.49969958,155.49,155.48,0.14216157]
[1749042001343,14.49969958,155.5,155.48,18.79181043]
[1749042001779,42.15379958,155.51,155.48,18.79181043]
[1749042002150,26.0,155.51,155.48,18.79181043]
[1749042002346,41.30164088,155.51,155.48,18.79181043]
[1749042002646,14.49969958,155.5,155.48,18.79181043]
[1749042002960,16.91424088,155.49,155.47,88.7756496]
[1749042003273,14.49969958,155.48,155.47,88.91781117]
[1749042004249,28.4145413,155.49,155.48,0.14216157]
[1749042004477,0.8019413,155.49,155.48,0.14216157]
[1749042004677,14.49969958,155.5,155.48,0.14216157]
[1749042006377,14.49969958,155.49,155.48,0.14216157]
[1749042009079,14.49969958,155.49,155.47,88.7756496]
[1749042009260,15.30164088,155.48,155.47,88.7756496]
[1749042009462,16.94284088,155.48,155.47,88.7756496]
[1749042010366,43.22716402,155.48,155.47,88.7756496]
[1749042010681,16.94284088,155.48,155.47,88.7756496]
[1749042011180,16.94284088,155.48,155.47,88.91781117]
[1749042011481,15.30164088,155.48,155.47,88.91781117]
[1749042014881,0.8019413,155.48,155.47,88.91781117]
[1749042015079,15.30164088,155.48,155.47,88.91781117]
[1749042020092,40.49969958,155.49,155.48,0.14216157]
[1749042020269,26.0,155.49,155.48,0.14216157]
[1749042020799,26.0,155.46,155.33,7.9714]
[1749042021088,14.49969958,155.4,155.35,14.49969958]
[1749042021485,14.49969958,155.39,155.36,0.14216157]
[1749042021865,14.49969958,155.39,155.36,18.79181043]
[1749042022281,14.49969958,155.4,155.36,14.64186115]
[1749042022788,14.49969958,155.41,155.36,14.64186115]
[1749042022992,14.49969958,155.4,155.36,14.64186115]
[1749042023573,14.49969958,155.4,155.36,0.14216157]
[1749042023776,14.49969958,155.39,155.36,0.14216157]
[1749042024377,26.8019413,155.43,155.36,0.14216157]
[1749042024378,14.49969958,155.4,155.36,0.14216157]
[1749042025799,14.49969958,155.4,155.37,0.14216157]
[1749042026176,14.49969958,155.39,155.37,0.14216157]
[1749042026685,14.49969958,155.39,155.34,0.14216157]
[1749042026997,14.49969958,155.38,155.36,0.14216157]
[1749042027495,14.49969958,155.4,155.37,0.14216157]
[1749042027882,14.49969958,155.39,155.37,0.14216157]
[1749042028084,14.49969958,155.39,155.35,18.79181043]
[1749042029192,14.49969958,155.38,155.35,18.79181043]
[1749042029581,14.49969958,155.38,155.34,0.28432314]
[1749042030387,14.49969958,155.36,155.34,0.14216157]
[1749042030587,14.49969958,155.35,155.29,18.79181043]
[1749042030797,0.8019413,155.38,155.35,18.64964886]
[1749042031010,6.2876,155.42,155.38,0.14216157]
[1749042031011,14.49969958,155.4,155.38,0.14216157]
[1749042031179,26.8019413,155.42,155.38,0.14216157]
[1749042031371,14.49969958,155.39,155.38,0.14216157]
[1749042031775,14.49969958,155.39,155.37,0.14216157]
[1749042031979,14.49969958,155.38,155.37,0.14216157]
[1749042032211,26.8019413,155.42,155.37,0.14216157]
[1749042032212,14.49969958,155.39,155.37,0.14216157]
[1749042033997,14.49969958,155.38,155.35,0.14216157]
[1749042034196,14.49969958,155.39,155.35,0.14216157]
[1749042035107,14.49969958,155.38,155.35,0.14216157]
[1749042035983,14.49969958,155.39,155.35,0.14216157]
[1749042036703,14.49969958,155.39,155.36,0.14216157]
[1749042037924,14.49969958,155.4,155.36,14.64186115]
[1749042038088,14.49969958,155.4,155.37,0.14216157]
[1749042039433,14.49969958,155.4,155.36,14.64186115]
[1749042039434,14.49969958,155.38,155.36,0.14216157]
[1749042039585,14.49969958,155.38,155.36,0.28432314]
[1749042039793,26.8019413,155.42,155.36,0.28432314]
[1749042040029,26.8019413,155.42,155.4,0.14216157]
[1749042040198,16.88554088,155.43,155.4,0.14216157]
[1749042040536,16.08359958,155.43,155.4,0.14216157]
[1749042040891,27.5839,155.43,155.4,0.14216157]
[1749042041092,14.49969958,155.42,155.4,0.14216157]
[1749042042121,14.49969958,155.41,155.38,0.14216157]
[1749042042617,14.49969958,155.39,155.36,0.28432314]
[1749042042994,0.8019413,155.42,155.36,0.28432314]
[1749042042995,14.49969958,155.4,155.36,14.78402272]
[1749042044637,14.49969958,155.41,155.36,14.78402272]
[1749042045637,14.49969958,155.41,155.38,0.14216157]
[1749042046298,27.5839,155.43,155.38,0.28432314]
[1749042046500,14.49969958,155.42,155.39,18.79181043]
[1749042047436,27.5839,155.43,155.38,18.79181043]
[1749042047613,14.49969958,155.42,155.38,33.29151001]
[1749042048105,26.0,155.43,155.38,33.29151001]
[1749042048304,14.49969958,155.42,155.38,33.29151001]
[1749042048499,14.49969958,155.43,155.4,18.79181043]
[1749042048721,14.49969958,155.44,155.4,33.29151001]
[1749042049112,14.49969958,155.43,155.4,18.79181043]
[1749042049308,14.49969958,155.44,155.4,18.79181043]
[1749042049606,14.49969958,155.44,155.4,14.64186115]
[1749042050323,14.49969958,155.44,155.39,0.14216157]
[1749042050527,14.49969958,155.44,155.4,18.79181043]
[1749042051021,14.49969958,155.43,155.4,18.933972]
[1749042052036,14.49969958,155.44,155.4,14.78402272]
[1749042052237,14.49969958,155.45,155.42,18.79181043]
[1749042052927,1.6344,155.47,155.45,0.14216157]
[1749042053128,14.49969958,155.48,155.45,0.14216157]
[1749042053340,14.49969958,155.46,155.45,0.14216157]
[1749042053711,14.49969958,155.46,155.42,18.933972]
[1749042055315,14.49969958,155.46,155.42,0.28432314]
[1749042055630,14.49969958,155.45,155.42,18.933972]
[1749042056338,14.49969958,155.45,155.41,0.14216157]
[1749042058145,14.49969958,155.44,155.41,0.28432314]
[1749042059029,14.49969958,155.45,155.41,0.28432314]
[1749042060547,14.49969958,155.44,155.41,0.14216157]
[1749042060744,14.49969958,155.43,155.4,0.28432314]
[1749042061051,14.49969958,155.41,155.4,0.14216157]
[1749042061224,14.49969958,155.41,155.38,0.14216157]
[1749042061420,2.3997413,155.46,155.42,0.14216157]
[1749042061648,1.5978,155.46,155.42,14.78402272]
[1749042061822,42.09749958,155.46,155.42,14.78402272]
[1749042062647,27.5978,155.46,155.42,14.78402272]
[1749042063149,42.09749958,155.46,155.42,14.78402272]
[1749042063356,27.5978,155.46,155.42,14.78402272]
[1749042063557,4.46361249,155.51,155.44,0.14216157]
[1749042063736,40.49969958,155.49,155.45,18.64964886]
[1749042064046,14.49969958,155.49,155.46,0.14216157]
[1749042064359,14.49969958,155.48,155.46,0.14216157]
[1749042065139,40.49969958,155.49,155.46,0.14216157]
[1749042065428,26.0,155.49,155.46,0.14216157]
[1749042065624,40.49969958,155.49,155.46,0.14216157]
[1749042066247,14.49969958,155.48,155.45,18.933972]
[1749042066446,14.49969958,155.47,155.45,18.79181043]